Workbook

Sheet Angaben
B1: Übergangsbereichsrechner
B3: =IFERROR(CONCATENATE(" Beitragsberechnung vers.pflichtiger Beschäftigter innerhalb des Übergangsbereichs (",UGrenz+0.01," € bis ",TEXT(OGrenz,"0.000,00")," €)"),"Beitragsberechnung vers.pfl. Beschäftigter innerhalb der Gleitzone ") -> Beitragsberechnung vers.pflichtiger Beschäftigter innerhalb des Übergangsbereichs (520,01 € bis 1.600,00 €)
B4: ="Beitragszeitraum: ab Oktober " & Zeitraum -> Beitragszeitraum: ab Oktober 2022
B5: Zutreffende Sonderregelungen: | G5: Individuelle Angaben: | M5: Auswahl des individuellen KV-Zusatzbeitragssatzes
G7: Angabe des individuellen KV-Zusatzbeitragssatzes: | J7: =IF(AND(LC_Liste_KV_Zu=1,BS_KV_Zu_man=""),"",BS_KV_Zu/100) -> 0.0135
G9: Gültiger KV-Beitragssatz: | J9: =IFERROR(BS_KV_allg/100,"") -> 0.146
G12: Beitragszuschlag wegen Kinderlosigkeit in der PV:
G14: Allgemeine Beitragssätze der Sozialversicherung:
G16: Durchschnittlicher Gesamtsozialversicherungsbeitragssatz | J16: =IFERROR(Steuerung!C7/100,"") -> 0.3995
G18: allgemeiner Beitragssatz Krankenversicherung | J18: =IFERROR(Steuerung!C8/100,"") -> 0.146
G19: durchschnittl. Zusatzbeitragssatz Krankenversicherung | J19: =IFERROR(Steuerung!C12/100,"") -> 0.013
G20: Beitragssatz Rentenversicherung | J20: =IFERROR(nRV_Satz_Jahr/100,"") -> 0.186
G21: Beitragssatz Arbeitslosenversicherung | J21: =IFERROR(nAV_Satz_Jahr/100,"") -> 0.024
G22: Beitragssatz Pflegeversicherung | J22: =IFERROR(nPV_Satz_Jahr/100,"") -> 0.0305
G24: Zutreffende Arbeitgeber-Umlagen
G26: U1 - Krankheitsfall | J26: =S_U1_Satz -> 0
G28: U2 - Mutterschaft | J28: =S_U2_Satz -> 0
G30: Insolvenzumlage | J30: =IFERROR(S_U3_Satz,"") -> 0

Sheet Dialog
B1: =CONCATENATE(" Beitragsberechnung vers.pfl. Beschäftigter innerhalb des Übergangsbereichs (",UGrenz+0.01," € bis ",TEXT(OGrenz,"0.000,00")," €)") -> Beitragsberechnung vers.pfl. Beschäftigter innerhalb des Übergangsbereichs (520,01 € bis 1.600,00 €)
B2: ="Beitragszeitraum: ab Oktober " & Zeitraum -> Beitragszeitraum: ab Oktober 2022
B4: Berechnungsgrundlagen: | F4: Aktive Sonderregelungen: | K4: Mehrfachbeschäftigung
D5: Arbeitsentgelt für diese Tätigkeit | E5: 432 | F5: KV: | G5: allgemeiner Beitragssatz
D7: Übergangsbereichsentgelt für diese Tätigkeit: | E7: 420.81 | F7: RV:
D9: BE Arbeitnehmer für diese Tätigkeit: | E9: 394.57 | F9: AV:
F11: PV: | G11: Zuschlag wegen Kinderlosigkeit
F13: Sonderfälle: | G13: Mehrfachbeschäftigung
K16: Teilarbeitsentgelt für die Hauptbeschäftigung | L16: 432
B17: Voller SV-Beitrag: | D17: Arbeitgeberanteile: | F17: Arbeitnehmeranteile: | H17: Beitragssatz: | O17: -130.37
B18: KV: | C18: 61.44 | D18: KV: | E18: 32.64 | F18: KV: | G18: 28.8 | H18: KV: | I18: 0.146 | K18: Teilarbeitsentgelt für die Nebenbeschäftigung | L18: 924
B20: =IF(AND(S_KV_PV_frei<>TRUE,BS_KV_Zu<>0),"Zusatz KV:","") -> Zusatz KV: | C20: 5.68 | D20: =B20 -> Zusatz KV: | E20: 3.02 | F20: =B20 -> Zusatz KV: | G20: 2.66 | H20: =B20 -> Zusatz KV: | I20: 0.0135
K21: gesamtes monatliches Arbeitsentgelt: | L21: 1356
B22: RV: | C22: 78.28 | D22: RV: | E22: 41.58 | F22: RV: | G22: 36.7 | H22: RV: | I22: 0.186 | K22: gesamtes monatliches Übergangsbereichsentgelt: | L22: 1320.86
B24: AV: | C24: 10.1 | D24: AV: | E24: 5.37 | F24: AV: | G24: 4.73 | H24: AV: | I24: 0.024
B26: PV: | C26: 12.84 | D26: PV: | E26: 6.82 | F26: PV: | G26: 6.02 | H26: PV: | I26: 0.0305
B28: =IF(S_PV_Zu=1,"Zuschl. PV:","") -> Zuschl. PV: | C28: 1.47 | D28: =B28 -> Zuschl. PV: | E28: - | F28: =B28 -> Zuschl. PV: | G28: 1.47 | H28: =B28 -> Zuschl. PV: | I28: 0.0035
B30: SV-Gesamt: | C30: =SUM(C18:C28) -> 169.81 | D30: SV-Gesamt: | E30: =SUM(E18:E28) -> 89.43 | F30: SV-Gesamt: | G30: =SUM(G18:G28) -> 80.38
B32: =IF(S_U1=TRUE,"U1:","") ->  | C32: 8.42 | D32: =B32 ->  | E32: 8.42 | H32: =B32 ->  | I32: 0.02
B33: =IF(S_U2=TRUE,"U2:","") ->  | C33: 1.89 | D33: =B33 ->  | E33: 1.89 | H33: =B33 ->  | I33: 0.0045
B34: =IF(S_U3=TRUE,"Insolvenzuml.:","") ->  | C34: 0.38 | D34: =B34 ->  | E34: 0.38 | H34: =B34 ->  | I34: 0.0009
B36: =IF(OR(S_U1=TRUE,S_U2=TRUE,S_U3=TRUE),"Uml.-Gesamt:","") ->  | C36: =IF(OR(S_U1=TRUE,S_U2=TRUE,S_U3=TRUE),SUM(C32:C34),"") ->  | D36: =B36 ->  | E36: =IF(OR(S_U1=TRUE,S_U2=TRUE,S_U3=TRUE),SUM(E32:E35),"") -> 
B38: =IF(OR(S_U1=TRUE,S_U2=TRUE,S_U3=TRUE),"Insgesamt:","") ->  | C38: =IF(OR(S_U1=TRUE,S_U2=TRUE,S_U3=TRUE),SUM(C30:C34),"") ->  | D38: =B38 ->  | E38: =IF(OR(S_U1=TRUE,S_U2=TRUE,S_U3=TRUE),SUM(E30:E34),"") ->  | F38: =B38 ->  | G38: =IF(OR(S_U1=TRUE,S_U2=TRUE,S_U3=TRUE),SUM(G30:G34),"") -> 

Sheet Tabelle
C1: Beitragspflichtige Einnahmen und Beitragsberechnung versicherungspfl. Beschäftigter
C2: =CONCATENATE("innerhalb des Übergangsbereichs von ",UGrenz+0.01," € bis ",TEXT(OGrenz,"0.000,00")," €") -> innerhalb des Übergangsbereichs von 520,01 € bis 1.600,00 €
C3: (§ 20 Abs.2 und Abs. 2a SGB IV, § 344 Abs.4 SGB III, § 226 Abs.4 SGB V, § 163 Abs. 7 SGB VI, § 58 Abs.5 SGB XI)
C5: ="Beitragszeitraum: ab Oktober " & Zeitraum -> Beitragszeitraum: ab Oktober 2022
C6: monatliches Arbeitsentgelt | D6: ="Beitragsbemes-sungsgrundlage bei: "&Steuerung!C7&" %" -> Beitragsbemes-sungsgrundlage bei: 39,95 % | E6: Beitragspflichtige Einnahme Arbeitnehmer | F6: monatliches Arbeitsentgelt | G6: =D6 -> Beitragsbemes-sungsgrundlage bei: 39,95 % | H6: Beitragspflichtige Einnahme Arbeitnehmer
C7: =UGrenz+0.01 -> 520.01 | D7: =ROUND(Faktor * UGrenz + ((OGrenz / (OGrenz - UGrenz)) - (UGrenz / (OGrenz - UGrenz)) * Faktor) * (C7 - UGrenz), 2) -> 364.48 | E7: =ROUND((OGrenz / (OGrenz - UGrenz)) * (C7 - UGrenz), 2) -> 0.01 | F7: =C61+5 -> 795 | G7: =ROUND(Faktor * UGrenz + ((OGrenz / (OGrenz - UGrenz)) - (UGrenz / (OGrenz - UGrenz)) * Faktor) * (F7 - UGrenz), 2) -> 679.07 | H7: =ROUND((OGrenz / (OGrenz - UGrenz)) * (F7 - UGrenz), 2) -> 407.41
C8: =UGrenz+5 -> 525 | D8: =ROUND(Faktor * UGrenz + ((OGrenz / (OGrenz - UGrenz)) - (UGrenz / (OGrenz - UGrenz)) * Faktor) * (C8 - UGrenz), 2) -> 370.19 | E8: 7.41 | F8: =F7+5 -> 800 | G8: =ROUND(Faktor * UGrenz + ((OGrenz / (OGrenz - UGrenz)) - (UGrenz / (OGrenz - UGrenz)) * Faktor) * (F8 - UGrenz), 2) -> 684.79 | H8: 414.81
C9: =C8+5 -> 530 | D9: =ROUND(Faktor * UGrenz + ((OGrenz / (OGrenz - UGrenz)) - (UGrenz / (OGrenz - UGrenz)) * Faktor) * (C9 - UGrenz), 2) -> 375.91 | E9: 14.81 | F9: =F8+5 -> 805 | G9: =ROUND(Faktor * UGrenz + ((OGrenz / (OGrenz - UGrenz)) - (UGrenz / (OGrenz - UGrenz)) * Faktor) * (F9 - UGrenz), 2) -> 690.51 | H9: 422.22
C10: 535 | D10: 381.63 | E10: 22.22 | F10: 810 | G10: 696.23 | H10: 429.63
C11: 540 | D11: 387.35 | E11: 29.63 | F11: 815 | G11: 701.95 | H11: 437.04
C12: 545 | D12: 393.07 | E12: 37.04 | F12: 820 | G12: 707.67 | H12: 444.44
C13: 550 | D13: 398.79 | E13: 44.44 | F13: 825 | G13: 713.39 | H13: 451.85
C14: 555 | D14: 404.51 | E14: 51.85 | F14: 830 | G14: 719.11 | H14: 459.26
C15: 560 | D15: 410.23 | E15: 59.26 | F15: 835 | G15: 724.83 | H15: 466.67
C16: 565 | D16: 415.95 | E16: 66.67 | F16: 840 | G16: 730.55 | H16: 474.07
C17: 570 | D17: 421.67 | E17: 74.07 | F17: 845 | G17: 736.27 | H17: 481.48
C18: 575 | D18: =ROUND(Faktor * UGrenz + ((OGrenz / (OGrenz - UGrenz)) - (UGrenz / (OGrenz - UGrenz)) * Faktor) * (C18 - UGrenz), 2) -> 427.39 | E18: 81.48 | F18: 850 | G18: =ROUND(Faktor * UGrenz + ((OGrenz / (OGrenz - UGrenz)) - (UGrenz / (OGrenz - UGrenz)) * Faktor) * (F18 - UGrenz), 2) -> 741.99 | H18: 488.89
C19: 580 | D19: 433.11 | E19: 88.89 | F19: 855 | G19: =ROUND(Faktor * UGrenz + ((OGrenz / (OGrenz - UGrenz)) - (UGrenz / (OGrenz - UGrenz)) * Faktor) * (F19 - UGrenz), 2) -> 747.71 | H19: 496.3
C20: 585 | D20: 438.83 | E20: 96.3 | F20: 860 | G20: =ROUND(Faktor * UGrenz + ((OGrenz / (OGrenz - UGrenz)) - (UGrenz / (OGrenz - UGrenz)) * Faktor) * (F20 - UGrenz), 2) -> 753.43 | H20: 503.7
C21: 590 | D21: 444.55 | E21: 103.7 | F21: 865 | G21: =ROUND(Faktor * UGrenz + ((OGrenz / (OGrenz - UGrenz)) - (UGrenz / (OGrenz - UGrenz)) * Faktor) * (F21 - UGrenz), 2) -> 759.15 | H21: 511.11
C22: 595 | D22: 450.27 | E22: 111.11 | F22: 870 | G22: =ROUND(Faktor * UGrenz + ((OGrenz / (OGrenz - UGrenz)) - (UGrenz / (OGrenz - UGrenz)) * Faktor) * (F22 - UGrenz), 2) -> 764.87 | H22: 518.52
C23: =C22+5 -> 600 | D23: 455.99 | E23: 118.52 | F23: 875 | G23: =ROUND(Faktor * UGrenz + ((OGrenz / (OGrenz - UGrenz)) - (UGrenz / (OGrenz - UGrenz)) * Faktor) * (F23 - UGrenz), 2) -> 770.59 | H23: 525.93
C24: 605 | D24: 461.71 | E24: 125.93 | F24: 880 | G24: 776.31 | H24: 533.33
C25: 610 | D25: 467.43 | E25: 133.33 | F25: 885 | G25: 782.03 | H25: 540.74
C26: 615 | D26: 473.15 | E26: 140.74 | F26: 890 | G26: 787.75 | H26: 548.15
C27: 620 | D27: 478.87 | E27: 148.15 | F27: 895 | G27: 793.47 | H27: 555.56
C28: 625 | D28: 484.59 | E28: 155.56 | F28: 900 | G28: 799.19 | H28: 562.96
C29: 630 | D29: 490.31 | E29: 162.96 | F29: 905 | G29: =ROUND(Faktor * UGrenz + ((OGrenz / (OGrenz - UGrenz)) - (UGrenz / (OGrenz - UGrenz)) * Faktor) * (F29 - UGrenz), 2) -> 804.91 | H29: 570.37
C30: =C29+5 -> 635 | D30: 496.03 | E30: 170.37 | F30: 910 | G30: =ROUND(Faktor * UGrenz + ((OGrenz / (OGrenz - UGrenz)) - (UGrenz / (OGrenz - UGrenz)) * Faktor) * (F30 - UGrenz), 2) -> 810.63 | H30: 577.78
C31: 640 | D31: 501.75 | E31: 177.78 | F31: 915 | G31: =ROUND(Faktor * UGrenz + ((OGrenz / (OGrenz - UGrenz)) - (UGrenz / (OGrenz - UGrenz)) * Faktor) * (F31 - UGrenz), 2) -> 816.35 | H31: 585.19
C32: 645 | D32: 507.47 | E32: 185.19 | F32: 920 | G32: 822.07 | H32: 592.59
C33: 650 | D33: 513.19 | E33: 192.59 | F33: 925 | G33: 827.79 | H33: 600
C34: 655 | D34: 518.91 | E34: 200 | F34: 930 | G34: 833.51 | H34: 607.41
C35: 660 | D35: 524.63 | E35: 207.41 | F35: 935 | G35: 839.23 | H35: 614.81
C36: 665 | D36: 530.35 | E36: 214.81 | F36: 940 | G36: 844.95 | H36: 622.22
C37: 670 | D37: 536.07 | E37: 222.22 | F37: 945 | G37: 850.67 | H37: 629.63
C38: 675 | D38: 541.79 | E38: 229.63 | F38: 950 | G38: 856.39 | H38: 637.04
C39: 680 | D39: 547.51 | E39: =ROUND((OGrenz / (OGrenz - UGrenz)) * (C39 - UGrenz), 2) -> 237.04 | F39: 955 | G39: 862.11 | H39: =ROUND((OGrenz / (OGrenz - UGrenz)) * (F39 - UGrenz), 2) -> 644.44
C40: 685 | D40: 553.23 | E40: 244.44 | F40: 960 | G40: 867.83 | H40: 651.85
C41: 690 | D41: 558.95 | E41: 251.85 | F41: 965 | G41: =ROUND(Faktor * UGrenz + ((OGrenz / (OGrenz - UGrenz)) - (UGrenz / (OGrenz - UGrenz)) * Faktor) * (F41 - UGrenz), 2) -> 873.55 | H41: 659.26
C42: 695 | D42: 564.67 | E42: 259.26 | F42: 970 | G42: 879.27 | H42: 666.67
C43: 700 | D43: 570.39 | E43: 266.67 | F43: 975 | G43: 884.99 | H43: 674.07
C44: 705 | D44: 576.11 | E44: 274.07 | F44: 980 | G44: 890.71 | H44: 681.48
C45: 710 | D45: 581.83 | E45: 281.48 | F45: 985 | G45: 896.43 | H45: 688.89
C46: =C45+5 -> 715 | D46: 587.55 | E46: 288.89 | F46: 990 | G46: 902.15 | H46: 696.3
C47: =C46+5 -> 720 | D47: =ROUND(Faktor * UGrenz + ((OGrenz / (OGrenz - UGrenz)) - (UGrenz / (OGrenz - UGrenz)) * Faktor) * (C47 - UGrenz), 2) -> 593.27 | E47: 296.3 | F47: 995 | G47: =ROUND(Faktor * UGrenz + ((OGrenz / (OGrenz - UGrenz)) - (UGrenz / (OGrenz - UGrenz)) * Faktor) * (F47 - UGrenz), 2) -> 907.87 | H47: 703.7
C48: 725 | D48: 598.99 | E48: 303.7 | F48: 1000 | G48: 913.59 | H48: 711.11
C49: 730 | D49: 604.71 | E49: 311.11 | F49: 1005 | G49: 919.31 | H49: 718.52
C50: 735 | D50: 610.43 | E50: 318.52 | F50: 1010 | G50: 925.03 | H50: 725.93
C51: 740 | D51: 616.15 | E51: 325.93 | F51: 1015 | G51: 930.75 | H51: 733.33
C52: 745 | D52: 621.87 | E52: 333.33 | F52: 1020 | G52: 936.47 | H52: 740.74
C53: 750 | D53: 627.59 | E53: 340.74 | F53: 1025 | G53: 942.19 | H53: 748.15
C54: 755 | D54: 633.31 | E54: 348.15 | F54: 1030 | G54: 947.91 | H54: 755.56
C55: 760 | D55: 639.03 | E55: 355.56 | F55: 1035 | G55: 953.63 | H55: 762.96
C56: 765 | D56: 644.75 | E56: 362.96 | F56: 1040 | G56: 959.35 | H56: 770.37
C57: 770 | D57: =ROUND(Faktor * UGrenz + ((OGrenz / (OGrenz - UGrenz)) - (UGrenz / (OGrenz - UGrenz)) * Faktor) * (C57 - UGrenz), 2) -> 650.47 | E57: 370.37 | F57: 1045 | G57: =ROUND(Faktor * UGrenz + ((OGrenz / (OGrenz - UGrenz)) - (UGrenz / (OGrenz - UGrenz)) * Faktor) * (F57 - UGrenz), 2) -> 965.07 | H57: 777.78
C58: 775 | D58: =ROUND(Faktor * UGrenz + ((OGrenz / (OGrenz - UGrenz)) - (UGrenz / (OGrenz - UGrenz)) * Faktor) * (C58 - UGrenz), 2) -> 656.19 | E58: 377.78 | F58: 1050 | G58: =ROUND(Faktor * UGrenz + ((OGrenz / (OGrenz - UGrenz)) - (UGrenz / (OGrenz - UGrenz)) * Faktor) * (F58 - UGrenz), 2) -> 970.79 | H58: 785.19
C59: 780 | D59: 661.91 | E59: 385.19 | F59: 1055 | G59: 976.51 | H59: 792.59
C60: 785 | D60: 667.63 | E60: 392.59 | F60: 1060 | G60: 982.23 | H60: 800
C61: 790 | D61: 673.35 | E61: 400 | F61: 1065 | G61: 987.95 | H61: 807.41
C62: =F61+5 -> 1070 | D62: 993.67 | E62: 814.81 | F62: =C114+5 -> 1335 | G62: 1296.84 | H62: 1207.41
C63: 1075 | D63: 999.39 | E63: 822.22 | F63: 1340 | G63: 1302.56 | H63: 1214.81
C64: 1080 | D64: 1005.11 | E64: 829.63 | F64: 1345 | G64: 1308.28 | H64: 1222.22
C65: 1085 | D65: 1010.83 | E65: 837.04 | F65: =IF(F64+5<=OGrenz,F64+5,"") -> 1350 | G65: 1314 | H65: 1229.63
C66: 1090 | D66: 1016.55 | E66: 844.44 | F66: =IF(F65+5<=OGrenz,F65+5,"") -> 1355 | G66: 1319.72 | H66: 1237.04
C67: 1095 | D67: 1022.27 | E67: 851.85 | F67: =IF(F66+5<=OGrenz,F66+5,"") -> 1360 | G67: 1325.44 | H67: 1244.44
C68: 1100 | D68: 1027.99 | E68: 859.26 | F68: =IF(F67+5<=OGrenz,F67+5,"") -> 1365 | G68: 1331.16 | H68: 1251.85
C69: 1105 | D69: 1033.71 | E69: 866.67 | F69: =IF(F68+5<=OGrenz,F68+5,"") -> 1370 | G69: 1336.88 | H69: 1259.26
C70: 1110 | D70: 1039.43 | E70: 874.07 | F70: =IFERROR(IF(F69+5<=OGrenz,F69+5,""),"") -> 1375 | G70: =IFERROR(ROUND(Faktor * UGrenz + ((OGrenz / (OGrenz - UGrenz)) - (UGrenz / (OGrenz - UGrenz)) * Faktor) * (F70 - UGrenz), 2),"") -> 1342.6 | H70: 1266.67
C71: 1115 | D71: 1045.15 | E71: =ROUND((OGrenz / (OGrenz - UGrenz)) * (C71 - UGrenz), 2) -> 881.48 | F71: 1380 | G71: 1348.32 | H71: =ROUND((OGrenz / (OGrenz - UGrenz)) * (F71 - UGrenz), 2) -> 1274.07
C72: 1120 | D72: 1050.87 | E72: 888.89 | F72: 1385 | G72: 1354.04 | H72: 1281.48
C73: 1125 | D73: 1056.59 | E73: 896.3 | F73: 1390 | G73: 1359.76 | H73: 1288.89
C74: 1130 | D74: 1062.31 | E74: 903.7 | F74: 1395 | G74: 1365.48 | H74: 1296.3
C75: 1135 | D75: 1068.03 | E75: 911.11 | F75: 1400 | G75: 1371.2 | H75: 1303.7
C76: 1140 | D76: 1073.75 | E76: 918.52 | F76: 1405 | G76: 1376.92 | H76: 1311.11
C77: 1145 | D77: 1079.47 | E77: 925.93 | F77: 1410 | G77: 1382.64 | H77: 1318.52
C78: 1150 | D78: 1085.2 | E78: 933.33 | F78: 1415 | G78: 1388.36 | H78: 1325.93
C79: 1155 | D79: 1090.92 | E79: 940.74 | F79: 1420 | G79: 1394.08 | H79: 1333.33
C80: 1160 | D80: 1096.64 | E80: 948.15 | F80: 1425 | G80: 1399.8 | H80: 1340.74
C81: 1165 | D81: 1102.36 | E81: 955.56 | F81: 1430 | G81: 1405.52 | H81: 1348.15
C82: 1170 | D82: 1108.08 | E82: 962.96 | F82: 1435 | G82: 1411.24 | H82: 1355.56
C83: 1175 | D83: 1113.8 | E83: 970.37 | F83: 1440 | G83: 1416.96 | H83: 1362.96
C84: 1180 | D84: 1119.52 | E84: 977.78 | F84: 1445 | G84: 1422.68 | H84: 1370.37
C85: 1185 | D85: 1125.24 | E85: 985.19 | F85: 1450 | G85: 1428.4 | H85: 1377.78
C86: 1190 | D86: 1130.96 | E86: 992.59 | F86: 1455 | G86: 1434.12 | H86: 1385.19
C87: 1195 | D87: 1136.68 | E87: 1000 | F87: 1460 | G87: 1439.84 | H87: 1392.59
C88: 1200 | D88: 1142.4 | E88: 1007.41 | F88: 1465 | G88: 1445.56 | H88: 1400
C89: 1205 | D89: 1148.12 | E89: 1014.81 | F89: 1470 | G89: 1451.28 | H89: 1407.41
C90: 1210 | D90: 1153.84 | E90: 1022.22 | F90: 1475 | G90: 1457 | H90: 1414.81
C91: 1215 | D91: 1159.56 | E91: 1029.63 | F91: 1480 | G91: 1462.72 | H91: 1422.22
C92: 1220 | D92: 1165.28 | E92: 1037.04 | F92: 1485 | G92: 1468.44 | H92: 1429.63
C93: 1225 | D93: 1171 | E93: 1044.44 | F93: 1490 | G93: 1474.16 | H93: 1437.04
C94: 1230 | D94: 1176.72 | E94: 1051.85 | F94: 1495 | G94: 1479.88 | H94: 1444.44
C95: 1235 | D95: 1182.44 | E95: 1059.26 | F95: 1500 | G95: 1485.6 | H95: 1451.85
C96: 1240 | D96: 1188.16 | E96: 1066.67 | F96: 1505 | G96: 1491.32 | H96: 1459.26
C97: 1245 | D97: 1193.88 | E97: 1074.07 | F97: 1510 | G97: 1497.04 | H97: 1466.67
C98: 1250 | D98: 1199.6 | E98: 1081.48 | F98: 1515 | G98: 1502.76 | H98: 1474.07
C99: 1255 | D99: 1205.32 | E99: 1088.89 | F99: 1520 | G99: 1508.48 | H99: 1481.48
C100: 1260 | D100: 1211.04 | E100: 1096.3 | F100: 1525 | G100: 1514.2 | H100: 1488.89
C101: 1265 | D101: 1216.76 | E101: 1103.7 | F101: 1530 | G101: 1519.92 | H101: 1496.3
C102: 1270 | D102: 1222.48 | E102: 1111.11 | F102: 1535 | G102: 1525.64 | H102: 1503.7
C103: 1275 | D103: 1228.2 | E103: =ROUND((OGrenz / (OGrenz - UGrenz)) * (C103 - UGrenz), 2) -> 1118.52 | F103: 1540 | G103: 1531.36 | H103: =ROUND((OGrenz / (OGrenz - UGrenz)) * (F103 - UGrenz), 2) -> 1511.11
C104: 1280 | D104: 1233.92 | E104: 1125.93 | F104: 1545 | G104: 1537.08 | H104: 1518.52
C105: 1285 | D105: 1239.64 | E105: 1133.33 | F105: 1550 | G105: 1542.8 | H105: 1525.93
C106: 1290 | D106: 1245.36 | E106: 1140.74 | F106: 1555 | G106: 1548.52 | H106: 1533.33
C107: 1295 | D107: 1251.08 | E107: 1148.15 | F107: 1560 | G107: 1554.24 | H107: 1540.74
C108: 1300 | D108: 1256.8 | E108: 1155.56 | F108: 1565 | G108: 1559.96 | H108: 1548.15
C109: 1305 | D109: 1262.52 | E109: 1162.96 | F109: 1570 | G109: 1565.68 | H109: 1555.56
C110: 1310 | D110: 1268.24 | E110: 1170.37 | F110: 1575 | G110: 1571.4 | H110: 1562.96
C111: =C110+5 -> 1315 | D111: 1273.96 | E111: 1177.78 | F111: 1580 | G111: 1577.12 | H111: 1570.37
C112: 1320 | D112: 1279.68 | E112: 1185.19 | F112: 1585 | G112: 1582.84 | H112: 1577.78
C113: 1325 | D113: 1285.4 | E113: 1192.59 | F113: 1590 | G113: 1588.56 | H113: 1585.19
C114: 1330 | D114: 1291.12 | E114: 1200 | F114: 1595 | G114: 1594.28 | H114: 1592.59
F117: 1600 | G117: =IFERROR(ROUND(Faktor * UGrenz + ((OGrenz / (OGrenz - UGrenz)) - (UGrenz / (OGrenz - UGrenz)) * Faktor) * (F117 - UGrenz), 2),"") -> 1600 | H117: =ROUND((OGrenz / (OGrenz - UGrenz)) * (F117 - UGrenz), 2) -> 1600

Sheet Steuerung (hidden)
A1: Bezeichnung | B1: Rückgabe | C1: Wert | D1: TabellenSpalte
A2: Gewähltes Jahr | B2: =LC_Liste_Jahr -> 1 | C2: =VALUE(RIGHT(VLOOKUP(B2,Jahr,2,0),4)) -> 2022
A3: Beitragszeitraum | B3: 1 | C3: =IFERROR(VLOOKUP(B3,Jahr,D3,0),"Fehler") -> 2022 | D3: =SUMIF(Listen!$F$19:$U$20,A3,Listen!$F$20:$U$20) -> 2 | F3: F | G3: FÜ
A4: Untergrenze | B4: =B2 -> 1 | C4: =IF(B6,G4,F4) -> 520 | D4: =SUMIF(Listen!$F$19:$U$20,A4,Listen!$F$20:$U$20) -> 11 | F4: =VLOOKUP($B4,Jahr,$D4,0) -> 520 | G4: 450
A5: Obergrenze | B5: =B2 -> 1 | C5: =IF(B6,G5,F5) -> 1600 | D5: =SUMIF(Listen!$F$19:$U$20,A5,Listen!$F$20:$U$20) -> 12 | F5: =VLOOKUP($B5,Jahr,$D5,0) -> 1600 | G5: 1300
A6: Faktor | B6: FALSE | C6: =ROUND(IF(B6,G6/C7,F6/C7),4) -> 0.7009 | F6: 28 | G6: 30
A7: Summe SV | B7: =B2 -> 1 | C7: =VLOOKUP(B7,Jahr,D7,0) -> 39.95 | D7: =SUMIF(Listen!$F$19:$U$20,A7,Listen!$F$20:$U$20) -> 3
A8: KV allg | B8: =B2 -> 1 | C8: 14.6 | D8: =SUMIF(Listen!$F$19:$U$20,A8,Listen!$F$20:$U$20) -> 9
A9: RV | B9: =B2 -> 1 | C9: 18.6 | D9: =SUMIF(Listen!$F$19:$U$20,A9,Listen!$F$20:$U$20) -> 5
A10: AV | B10: =B2 -> 1 | C10: 2.4 | D10: =SUMIF(Listen!$F$19:$U$20,A10,Listen!$F$20:$U$20) -> 6
A11: PV | B11: =B2 -> 1 | C11: 3.05 | D11: =SUMIF(Listen!$F$19:$U$20,A11,Listen!$F$20:$U$20) -> 7
A12: Zusatz KV | B12: =B2 -> 1 | C12: 1.3 | D12: =SUMIF(Listen!$F$19:$U$20,A12,Listen!$F$20:$U$20) -> 4
A13: KV erm | B13: =B2 -> 1 | C13: =VLOOKUP(B13,Jahr,D13,0) -> 14 | D13: =SUMIF(Listen!$F$19:$U$20,A13,Listen!$F$20:$U$20) -> 10
A14: KV allg | B14: =B2 -> 1 | C14: =VLOOKUP(B14,Jahr,D14,0) -> 14.6 | D14: =SUMIF(Listen!$F$19:$U$20,A14,Listen!$F$20:$U$20) -> 9
A15: KV Beitragssatz | B15: =IF(S_BS_allg,1,2) -> 1 | C15: =IF(S_KV_allg_erm.BS=2,C13,C14) -> 14.6 | F15: S_BS_allg | G15: TRUE
A16: KV individueller ZusatzBS | B16: 21 | C16: =IFERROR(VLOOKUP(B16,KV,2,0)*100,D16) -> 1.35 | D16: 1.22 | E16: manuell | F16: S_BS_ermäßigt | G16: FALSE
A17: RV Knappsch. | B17: =B2 -> 1 | C17: =VLOOKUP(B17,Jahr,D17,0) -> 24.7 | D17: =SUMIF(Listen!$F$19:$U$20,A17,Listen!$F$20:$U$20) -> 8
A18: AG-Ant. Sachsen | B18: =B2 -> 1 | C18: =VLOOKUP(B18,Jahr,D18,0) -> 0.01025 | D18: =SUMIF(Listen!$F$19:$U$20,A18,Listen!$F$20:$U$20) -> 13
A19: AN-Ant. Sachsen | B19: =B2 -> 1 | C19: =VLOOKUP(B19,Jahr,D19,0) -> 0.02025 | D19: =SUMIF(Listen!$F$19:$U$20,A19,Listen!$F$20:$U$20) -> 14
A20: Zuschlag wg Kinderlosigkeit | B20: 1 | C20: =IF(S_PV_Zu=1,VLOOKUP(B2,Jahr,D20,0),0) -> 0.35 | D20: =SUMIF(Listen!$F$19:$U$20,A20,Listen!$F$20:$U$20) -> 16
A21: U1 - Krankheitsfall | B21: FALSE | C21: 0
A22: U2 - Mutterschaft | B22: FALSE | C22: 0
A23: Insolvenzgeld | B23: FALSE | C23: =IF(S_U3=TRUE,VLOOKUP(B5,Jahr,D23,0),0) -> 0 | D23: =SUMIF(Listen!$F$19:$U$20,A23,Listen!$F$20:$U$20) -> 15
A25: Frei KV/PV | B25: FALSE
A26: PV Sachsen | B26: FALSE
A27: Frei RV | B27: FALSE
A28: RV nur AG
A29: RV Knappsch.
A30: nur AV | B30: 0
A31: Frei AV | B31: FALSE
A32: Frei AV_AN | B32: FALSE
A34: Sonderfall 1 | B34: FALSE
A35: Sonderfall 2 | B35: FALSE
A36: Sonderfall2 Option | B36: =IF(S_Sonder_2_Opt1,1,2) -> 2 | F36: S_Sonder_2_Opt1 | I36: =IF(S_Sonder_2_Opt1,1,2) -> 2
A37: Mehrfachbesch. | B37: FALSE | F37: S_Sonder_2_Opt2
A38: Sonderfall 4 | B38: FALSE
A39: Azubi
A41: Auswahl Sonderfall | B41: =INDIRECT("Steuerung!A"&58+nAuswahl_Sonder) -> S2_O1_O2_Zusatz | C41: =SUM(C62:C70) -> 2
A42: Auswahl KV | C42: =SUM(C73:C75) -> 12
A43: Auswahl PV | C43: =SUM(C78:C80) -> 20
A44: Auswahl RV | C44: =SUM(C83:C87) -> 30
A45: Auswahl AV | C45: =SUM(C90:C92) -> 40
A46: PV Kinderzuschlag | B46: =IF(AND(S_KV_PV_frei<>TRUE,S_PV_Zu=1),TRUE) -> TRUE | C46: =IF(B46,50,"") -> 50
A49: Opt_Sond2_Tage
A50: Opt_Sond2_Stunden
A51: Opt_Sond2_Wostu
A52: Opt_Sond2_Entgelt
A53: AE
A54: Sond3_Entgelt
A55: Sond3_Sonstentgelt
A56: Sond3_Quotient | B56: 0.2727272727
A58: S2_O1_O2 | B58: =IF(S_Sonder_2_Opt=1," Tagen"," geleist. h ") -> geleist. h
A59: Anzahl_S2_O1_O2 | B59: =IF(S_Sonder_2_Opt=1,VALUE(B49),VALUE(B50)) -> 0
A60: S2_O1_O2_Zusatz | B60: =IF(S_Sonder_2_Opt=2,"/ "&VALUE(B51)&" h wtl. Regel-AZ","") -> / 0 h wtl. Regel-AZ | H60: S_Sonder_1 | I60: S_Sonder_2 | J60: S_Mehrfach | K60: S_Sonder_4
H61: =S_Sonder_1 -> FALSE | I61: =S_Sonder_2 -> FALSE | J61: =S_Mehrfach -> FALSE | K61: =S_Sonder_4 -> FALSE
A62: AE ohne Sonder | B62: =IF(AND(S_Sonder_1<>TRUE,S_Sonder_2<>TRUE,S_Mehrfach<>TRUE,S_Sonder_4<>TRUE),TRUE) -> TRUE | C62: =IF(B62,1,"") -> 1 | E62: 1 | F62: OHNE | H62: F | I62: F | J62: F | K62: F
A63: Mehrfachbesch. | B63: =IF(AND(S_Sonder_1<>TRUE,S_Sonder_2<>TRUE,S_Mehrfach=TRUE,S_Sonder_4<>TRUE),TRUE) -> FALSE | C63: =IF(B63,2,"") ->  | E63: 2 | F63: Mehrfach | H63: F | I63: F | J63: W | K63: F
A64: Teilmonate | B64: =IF(AND(S_Sonder_1<>TRUE,S_Sonder_2=TRUE,S_Mehrfach<>TRUE,S_Sonder_4<>TRUE),TRUE) -> FALSE | C64: =IF(B64,3,"") ->  | E64: 3 | F64: Teil monat | H64: F | I64: W | J64: F | K64: F
A65: mit Einmalzahlung | B65: =IF(AND(S_Sonder_1<>TRUE,S_Sonder_2<>TRUE,S_Mehrfach<>TRUE,S_Sonder_4=TRUE),TRUE) -> FALSE | C65: =IF(B65,4,"") ->  | E65: 4 | F65: Einmal zahlung | H65: F | I65: F | J65: F | K65: W
A66: Teilmonat bei Mehrfach | B66: =IF(AND(S_Sonder_1<>TRUE,S_Sonder_2=TRUE,S_Mehrfach=TRUE,S_Sonder_4<>TRUE),TRUE) -> FALSE | C66: =IF(B66,5,"") ->  | E66: 5 | F66: Teilmonat bei Mehrfach beschäftigung | H66: F | I66: W | J66: W | K66: F
A67: Einmalzahlung bei Teilmonat | B67: =IF(AND(S_Sonder_1<>TRUE,S_Sonder_2=TRUE,S_Mehrfach<>TRUE,S_Sonder_4=TRUE),TRUE) -> FALSE | C67: =IF(B67,6,"") ->  | E67: 6 | F67: Einmalzahlung bei Teilmonat | H67: F | I67: W | J67: F | K67: W
A68: AE unter UGrenze | B68: =IF(AND(S_Sonder_1=TRUE,S_Sonder_2<>TRUE,S_Mehrfach<>TRUE,S_Sonder_4<>TRUE),TRUE) -> FALSE | C68: =IF(B68,7,"") ->  | E68: 7 | F68: unter UnterGrenze | H68: W | I68: F | J68: F | K68: F
A69: AE unter UGrenze und Teilmonat | B69: =IF(AND(S_Sonder_1=TRUE,S_Sonder_2=TRUE,S_Mehrfach<>TRUE,S_Sonder_4<>TRUE),TRUE) -> FALSE | C69: =IF(B69,8,"") ->  | E69: 8 | F69: unter UnterGrenze und Teilmonat | H69: W | I69: W | J69: F | K69: F
C70: =SUM(C62:C69) -> 1 | E70: 0 | F70: nicht zulässig
A73: KV ohne Sonder | B73: =IF(S_KV_PV_frei<>TRUE,TRUE) -> TRUE | C73: =IF(B73,10,"") -> 10
A74: KV frei | B74: =IF(S_KV_PV_frei=TRUE,TRUE) -> FALSE | C74: =IF(B74,11,"") -> 
A75: KV allg / ermäßigt | B75: =IF((S_KV_PV_frei<>TRUE),TRUE) -> TRUE | C75: =IF(B75,S_KV_allg_erm.BS+1,"") -> 2
A78: PV ohne Sonder | B78: =IF(AND(S_KV_PV_frei<>TRUE,S_PV_Sachsen<>TRUE),TRUE) -> TRUE | C78: =IF(B78,20,"") -> 20
A79: PV frei | B79: =IF(S_KV_PV_frei=TRUE,TRUE) -> FALSE | C79: =IF(B79,21,"") -> 
A80: PV Sachsen | B80: =IF(AND(S_KV_PV_frei<>TRUE,S_PV_Sachsen=TRUE),TRUE) -> FALSE | C80: =IF(B80,22,"") -> 
A83: RV ohne Sonder | B83: =IF(AND(S_RV_frei<>TRUE,S_RV_aus_t.E.<>TRUE,S_RV_Knapp<>TRUE),TRUE) -> TRUE | C83: =IF(B83,30,"") -> 30
A84: RV frei | B84: =IF(S_RV_frei=TRUE,TRUE) -> FALSE | C84: =IF(B84,31,"") -> 
A85: RV nur AG | B85: =IF(AND(S_RV_frei<>TRUE,S_RV_aus_t.E.=TRUE,S_RV_Knapp<>TRUE),TRUE) -> FALSE | C85: =IF(B85,32,"") -> 
A86: RV Knappschaft | B86: =IF(AND(S_RV_frei<>TRUE,S_RV_aus_t.E.<>TRUE,S_RV_Knapp=TRUE),TRUE) -> FALSE | C86: =IF(B86,33,"") -> 
A87: RV nur AG und Knappschaft | B87: =IF(AND(S_RV_frei<>TRUE,S_RV_aus_t.E.=TRUE,S_RV_Knapp=TRUE),TRUE) -> FALSE | C87: =IF(B87,34,"") -> 
A90: AV ohne Sonder | B90: =IF(AND(S_AV_frei<>TRUE,S_AV_frei_AN<>TRUE),TRUE) -> TRUE | C90: =IF(B90,40,"") -> 40
A91: AV frei | B91: =IF(S_AV_frei=TRUE,TRUE) -> FALSE | C91: =IF(B91,41,"") ->  | F91: 1200 | G91: 18.6 | H91: =F91*G91/100 -> 223.2 | I91: =H91/2 -> 111.6
A92: Frei AV_AN | B92: =IF(S_AV_frei_AN=TRUE,TRUE) -> FALSE | C92: =IF(B92,42,"") ->  | F92: 384.54 | G92: 24.7 | H92: =F92*G92/100 -> 94.98138 | I92: =H92/2 -> 47.49069
H94: AG = ÜE * Satz - ((ÜE * Satz * Faktor)- (AE * Satz))
H96: ÜE * Satz | I96: ÜE * Satz * Faktor | J96: AE * Satz | K96: ((ÜE * Satz * Faktor)- (AE * Satz)) | L96: AG
F97: ÜE | G97: 384.54
F98: AE | G98: 520
F99: Satz | G99: 0.247
F100: Faktor | G100: 2
H101: =G97*G99 -> 94.98138 | I101: =G97*G99*G100 -> 189.96276 | J101: =G98*G99 -> 128.44 | K101: =I101-J101 -> 61.52276 | L101: =H101-K101 -> 33.45862

Sheet Listen (hidden)
B1: Stand: | C1: 2022-01-07 | G1: Jahr | I1: Zusatz KV | J1: RV | K1: AV | L1: PV | M1: RV Knappsch. | N1: KV allg | O1: KV erm | P1: Untergrenze | Q1: Obergrenze | R1: AG-Ant. Sachsen | S1: AN-Ant. Sachsen | T1: Insolvenzgeld | U1: Zuschlag wg Kinderlosigkeit | W1: Mindest lohn | X1: x 130 | Y1: Gerinfügig keits grenze | AA1: SUCH | AB1: SFall-Nr | AC1: Zeile | AD1: Spalte | AE1: Text | AF1: SFall | AH1: SUCH | AI1: SFall-Nr | AJ1: Zeile | AK1: Spalte | AL1: Text | AM1: SFall | AP1: Name | AQ1: Bezug | AR1: Blatt | AS1: Spalte | AT1: Zeile
B2: KV | AA2: =AB2*100+AC2 -> 105 | AB2: 1 | AC2: 5 | AD2: 4 | AE2: Monatliches Arbeitsentgelt: | AF2: ohne Sonderfall | AP2: n_W5_Bez | AQ2: =Dialog!$D$5 | AR2: =MID(AQ2,2,FIND("!",AQ2,1)-2) -> Dialog | AS2: =MID(AQ2,FIND("!",AQ2,1)+2,FIND("$",AQ2,FIND("!",AQ2,1)+2)-FIND("!",AQ2,1)-2) -> D | AT2: =VALUE(MID(AQ2,FIND("$",AQ2,FIND("!",AQ2,1)+2)+1,5)) -> 5
B3: 1 | C3: manuelle Eingabe | F3: 1 | G3: 2022 | H3: =I3+J3+K3+L3+N3 -> 39.95 | I3: 1.3 | J3: 18.6 | K3: 2.4 | L3: 3.05 | M3: 24.7 | N3: 14.6 | O3: 14 | P3: =Y3 -> 520 | Q3: 1600 | R3: 0.01025 | S3: 0.02025 | T3: 0.0009 | U3: 0.35 | W3: 12 | X3: =130*W3 -> 1560 | Y3: =ROUNDUP(X3/3,0) -> 520 | AA3: 107 | AB3: 1 | AC3: 7 | AD3: 4 | AE3: Übergangsbereichsentgelt: | AF3: ohne Sonderfall | AP3: n_W5 | AQ3: =Dialog!$E$5 | AR3: Dialog | AS3: E | AT3: 5
B4: 2 | C4: 0.003 | F4: =F3+1 -> 2 | G4: 2021 | H4: 39.95 | I4: 1.3 | J4: 18.6 | K4: 2.4 | L4: 3.05 | M4: 24.7 | N4: 14.6 | O4: 14 | P4: 450 | Q4: 1300 | R4: 0.01025 | T4: 0.0012 | U4: 0.25 | AA4: 109 | AB4: 1 | AC4: 9 | AD4: 4 | AE4: BE Arbeitnehmer: | AF4: ohne Sonderfall | AP4: KV_Text | AQ4: =Dialog!$G$5 | AR4: Dialog | AS4: G | AT4: 5
B5: 3 | C5: 0.0035 | F5: 3 | G5: 2020 | H5: 39.75 | I5: 1.1 | J5: 18.6 | K5: 2.4 | L5: 3.05 | M5: 24.7 | N5: 14.6 | O5: 14 | P5: 450 | Q5: 1300 | R5: 0.01025 | T5: 0.0006 | U5: 0.25 | AA5: 205 | AB5: 2 | AC5: 5 | AD5: 4 | AE5: Arbeitsentgelt für diese Tätigkeit | AF5: Mehrfachbeschäftigung | AP5: S_Sonder_2_Stunden_Bez | AQ5: =Dialog!$K$5 | AR5: Dialog | AS5: K | AT5: 5
B6: 4 | C6: 0.004 | F6: 4 | G6: 2019 | H6: 39.65 | I6: 0.9 | J6: 18.6 | K6: 2.5 | L6: 3.05 | M6: 24.7 | N6: 14.6 | O6: 14 | P6: 450 | Q6: 1300 | R6: 0.01025 | T6: 0.0006 | U6: 0.25 | AA6: 207 | AB6: 2 | AC6: 7 | AD6: 4 | AE6: Übergangsbereichsentgelt für diese Tätigkeit: | AF6: Mehrfachbeschäftigung | AP6: S_Sonder_2_Tage_Bez | AQ6: =Dialog!$K$5 | AR6: Dialog | AS6: K | AT6: 5
B7: 5 | C7: 0.005 | F7: 5 | G7: 2018 | H7: 39.75 | I7: 1 | J7: 18.6 | K7: 3 | L7: 2.55 | M7: 24.7 | N7: 14.6 | O7: 14 | P7: 450 | Q7: 850 | R7: 0.00775 | T7: 0.0006 | U7: 0.25 | AA7: 209 | AB7: 2 | AC7: 9 | AD7: 4 | AE7: BE Arbeitnehmer für diese Tätigkeit: | AF7: Mehrfachbeschäftigung | AP7: S_Sonder_2_Stunden | AQ7: =Dialog!$L$5 | AR7: Dialog | AS7: L | AT7: 5
B8: 6 | C8: 0.0065 | F8: 6 | G8: 2017 | H8: 39.95 | I8: 1.1 | J8: 18.7 | K8: 3 | L8: 2.55 | M8: 24.8 | N8: 14.6 | O8: 14 | P8: 450 | Q8: 850 | R8: 0.00775 | T8: 0.0009 | U8: 0.25 | AA8: 221 | AB8: 2 | AC8: 21 | AD8: 11 | AE8: gesamtes monatliches Arbeitsentgelt: | AF8: Mehrfachbeschäftigung | AP8: S_Sonder_2_Tage | AQ8: =Dialog!$L$5 | AR8: Dialog | AS8: L | AT8: 5
B9: 7 | C9: 0.0069 | F9: 7 | G9: 2016 | H9: 39.75 | I9: 1.1 | J9: 18.7 | K9: 3 | L9: 2.35 | M9: 24.8 | N9: 14.6 | O9: 14 | P9: 450 | Q9: 850 | R9: 0.00675 | S9: 0.01675 | T9: 0.0012 | U9: 0.25 | AA9: 222 | AB9: 2 | AC9: 22 | AD9: 11 | AE9: gesamtes monatliches Übergangsbereichsentgelt: | AF9: Mehrfachbeschäftigung | AP9: n_W7_Bez | AQ9: =Dialog!$D$7 | AR9: Dialog | AS9: D | AT9: 7
B10: 8 | C10: 0.007 | F10: 8 | G10: 2015 | H10: 39.55 | I10: 0.9 | J10: 18.7 | K10: 3 | L10: 2.35 | M10: 24.8 | N10: 14.6 | O10: 14 | P10: 450 | Q10: 850 | R10: 0.00675 | S10: 0.01675 | T10: 0.0015 | U10: 0.25 | AA10: =AB10*100+AC10 -> 305 | AB10: 3 | AC10: 5 | AD10: 4 | AE10: Teilmonatsentgelt: | AF10: teilmonatl. Arbeitsentgelt | AP10: n_W7 | AQ10: =Dialog!$E$7 | AR10: Dialog | AS10: E | AT10: 7
B11: 9 | C11: 0.008 | AA11: 307 | AB11: 3 | AC11: 7 | AD11: 4 | AE11: Teil-Übergangsbereichsentgelt: | AF11: teilmonatl. Arbeitsentgelt | AP11: RV_Text | AQ11: =Dialog!$G$7 | AR11: Dialog | AS11: G | AT11: 7
B12: 10 | C12: 0.0084 | AA12: 309 | AB12: 3 | AC12: 9 | AD12: 4 | AE12: Teil-BE Arbeitnehmer: | AF12: teilmonatl. Arbeitsentgelt | AP12: S_Sonder_2_WoStunden_Bez | AQ12: =Dialog!$K$7 | AR12: Dialog | AS12: K | AT12: 7
B13: 11 | C13: 0.0088 | AA13: 321 | AB13: 3 | AC13: 21 | AD13: 11 | AE13: fiktives monatliches Arbeitsentgelt: | AF13: teilmonatl. Arbeitsentgelt | AP13: S_Sonder_2_WoStunden | AQ13: =Dialog!$L$7 | AR13: Dialog | AS13: L | AT13: 7
B14: 12 | C14: 0.009 | AA14: 322 | AB14: 3 | AC14: 22 | AD14: 11 | AE14: fiktives monatliches Übergangsbereichsentgelt: | AF14: teilmonatl. Arbeitsentgelt | AP14: n_W9_Bez | AQ14: =Dialog!$D$9 | AR14: Dialog | AS14: D | AT14: 9
B15: 13 | C15: 0.0098 | AA15: 405 | AB15: 4 | AC15: 5 | AD15: 4 | AE15: Arbeitsentgelt gesamt: | AF15: monatliches Arbeitsentgelt plus Einmalzahlung | AP15: n_W9 | AQ15: =Dialog!$E$9 | AR15: Dialog | AS15: E | AT15: 9
B16: 14 | C16: 0.01 | AA16: 407 | AB16: 4 | AC16: 7 | AD16: 4 | AE16: Übergangsbereichsentgelt gesamt: | AF16: monatliches Arbeitsentgelt plus Einmalzahlung | AP16: AV_Text | AQ16: =Dialog!$G$9 | AR16: Dialog | AS16: G | AT16: 9
B17: 15 | C17: 0.011 | AA17: =AB17*100+AC17 -> 409 | AB17: 4 | AC17: 9 | AD17: 4 | AE17: BE Arbeitnehmer gesamt: | AF17: monatliches Arbeitsentgelt plus Einmalzahlung | AP17: n_W11_Bez | AQ17: =Dialog!$D$11 | AR17: Dialog | AS17: D | AT17: 11
B18: 16 | C18: 0.012 | AA18: 421 | AB18: 4 | AC18: 21 | AD18: 11 | AE18: monatliches Arbeitsentgelt: | AF18: monatliches Arbeitsentgelt plus Einmalzahlung | AP18: n_W11 | AQ18: =Dialog!$E$11 | AR18: Dialog | AS18: E | AT18: 11
B19: 17 | C19: 0.0125 | F19: Auswahl | G19: Beitragszeitraum | H19: Summe SV | I19: Zusatz KV | J19: RV | K19: AV | L19: PV | M19: RV Knappsch. | N19: KV allg | O19: KV erm | P19: Untergrenze | Q19: Obergrenze | R19: AG-Ant. Sachsen | S19: AN-Ant. Sachsen | T19: Insolvenzgeld | U19: Zuschlag wg Kinderlosigkeit | AA19: 422 | AB19: 4 | AC19: 22 | AD19: 11 | AE19: Einmalzahlung | AF19: monatliches Arbeitsentgelt plus Einmalzahlung | AP19: PV_Text | AQ19: =Dialog!$G$11 | AR19: Dialog | AS19: G | AT19: 11
B20: 18 | C20: 0.0128 | F20: 1 | G20: =F20+1 -> 2 | H20: =G20+1 -> 3 | I20: 4 | J20: 5 | K20: 6 | L20: 7 | M20: 8 | N20: 9 | O20: 10 | P20: 11 | Q20: 12 | R20: 13 | S20: 14 | T20: 15 | U20: 16 | AA20: 505 | AB20: 5 | AC20: 5 | AD20: 4 | AE20: Arbeitsentgelt für das zu bewertende BV: | AF20: Mehrfachbeschäftigung mit teilmonatl. Arbeitsentgelt | AP20: S_Sonder_2_Stunden_B_Bez | AQ20: =Dialog!$K$11 | AR20: Dialog | AS20: K | AT20: 11
B21: 19 | C21: 0.0129 | AA21: 507 | AB21: 5 | AC21: 7 | AD21: 4 | AE21: Übergangsbereichsentgelt für dieses BV: | AF21: Mehrfachbeschäftigung mit teilmonatl. Arbeitsentgelt | AP21: S_Sonder_2_Stunden_B | AQ21: =Dialog!$L$11 | AR21: Dialog | AS21: L | AT21: 11
B22: 20 | C22: 0.013 | AA22: =AB22*100+AC22 -> 509 | AB22: 5 | AC22: 9 | AD22: 4 | AE22: BE Arbeitnehmer für dieses BV: | AF22: Mehrfachbeschäftigung mit teilmonatl. Arbeitsentgelt | AP22: n_W13_Bez | AQ22: =Dialog!$D$13 | AR22: Dialog | AS22: D | AT22: 13
B23: 21 | C23: 0.0135 | AA23: 521 | AB23: 5 | AC23: 21 | AD23: 11 | AE23: gesamtes monatliches Übergangsbereichsentgelt: | AF23: Mehrfachbeschäftigung mit teilmonatl. Arbeitsentgelt | AP23: n_W13 | AQ23: =Dialog!$E$13 | AR23: Dialog | AS23: E | AT23: 13
B24: 22 | C24: 0.0138 | AA24: 522 | AB24: 5 | AC24: 22 | AD24: 11 | AE24: gesamtes fiktives Arbeitsentgelt: | AF24: Mehrfachbeschäftigung mit teilmonatl. Arbeitsentgelt | AP24: S_Text | AQ24: =Dialog!$G$13 | AR24: Dialog | AS24: G | AT24: 13
B25: 23 | C25: 0.0139 | AA25: 523 | AB25: 5 | AC25: 23 | AD25: 11 | AE25: gesamtes fiktives Übergangsbereichsentgelt: | AF25: Mehrfachbeschäftigung mit teilmonatl. Arbeitsentgelt | AP25: S_Sonder_2_WoStunden_Bez_B | AQ25: =Dialog!$K$13 | AR25: Dialog | AS25: K | AT25: 13
B26: 24 | C26: 0.014 | AA26: 605 | AB26: 6 | AC26: 5 | AD26: 4 | AE26: Arbeitsentgelt gesamt: | AF26: teilmonatl. Arbeitsentgelt plus Einmalzahlung | AP26: S_Sonder_2_WoStunden_B | AQ26: =Dialog!$L$13 | AR26: Dialog | AS26: L | AT26: 13
B27: 25 | C27: 0.0144 | AA27: 607 | AB27: 6 | AC27: 7 | AD27: 4 | AE27: Übergangsbereichsentgelt gesamt: | AF27: teilmonatl. Arbeitsentgelt plus Einmalzahlung | AP27: n_W14_Bez | AQ27: =Dialog!$D$14 | AR27: Dialog | AS27: D | AT27: 14
B28: 26 | C28: 0.0145 | AA28: 609 | AB28: 6 | AC28: 9 | AD28: 4 | AE28: BE Arbeitnehmer gesamt: | AF28: teilmonatl. Arbeitsentgelt plus Einmalzahlung | AP28: n_W14 | AQ28: =Dialog!$E$14 | AR28: Dialog | AS28: E | AT28: 14
B29: 27 | C29: 0.0148 | AA29: 621 | AB29: 6 | AC29: 21 | AD29: 11 | AE29: fiktives monatliches Arbeitsentgelt: | AF29: teilmonatl. Arbeitsentgelt plus Einmalzahlung | AP29: nKV_ges | AQ29: =Dialog!$C$18 | AR29: Dialog | AS29: C | AT29: 18
B30: 28 | C30: 0.0149 | AA30: 622 | AB30: 6 | AC30: 22 | AD30: 11 | AE30: fiktives monatliches Arbeitsentgelt gesamt: | AF30: teilmonatl. Arbeitsentgelt plus Einmalzahlung | AP30: nKV_AG | AQ30: =Dialog!$E$18 | AR30: Dialog | AS30: E | AT30: 18
B31: 29 | C31: 0.015 | AA31: 623 | AB31: 6 | AC31: 23 | AD31: 11 | AE31: Teilmonatsentgelt: | AF31: teilmonatl. Arbeitsentgelt plus Einmalzahlung | AP31: nKV_AN | AQ31: =Dialog!$G$18 | AR31: Dialog | AS31: G | AT31: 18
B32: 30 | C32: 0.0154 | AA32: 624 | AB32: 6 | AC32: 24 | AD32: 11 | AE32: Einmalzahlung: | AF32: teilmonatl. Arbeitsentgelt plus Einmalzahlung | AP32: nKV_Satz | AQ32: =Dialog!$I$18 | AR32: Dialog | AS32: I | AT32: 18
B33: 31 | C33: 0.016 | AA33: 705 | AB33: 7 | AC33: 5 | AD33: 4 | AE33: Monatliches Arbeitsentgelt: | AF33: monatl. Arbeitseinkommen kleiner Untergrenze | AP33: nKV_Zu_ges | AQ33: =Dialog!$C$26 | AR33: Dialog | AS33: C | AT33: 20
B34: 32 | C34: 0.017 | AA34: 707 | AB34: 7 | AC34: 7 | AD34: 4 | AE34: Übergangsbereichsentgelt: | AF34: monatl. Arbeitseinkommen kleiner Untergrenze | AP34: nKV_Zu_AG | AQ34: =Dialog!$E$26 | AR34: =MID(AQ34,2,FIND("!",AQ34,1)-2) -> Dialog | AS34: =MID(AQ34,FIND("!",AQ34,1)+2,FIND("$",AQ34,FIND("!",AQ34,1)+2)-FIND("!",AQ34,1)-2) -> E | AT34: 20
B35: 33 | C35: 0.022 | AA35: 709 | AB35: 7 | AC35: 9 | AD35: 4 | AE35: BE Arbeitnehmer: | AF35: monatl. Arbeitseinkommen kleiner Untergrenze | AP35: nKV_Zu_AN | AQ35: =Dialog!$G$26 | AR35: Dialog | AS35: G | AT35: 20
B36: 34 | C36: 0.024 | AA36: 805 | AB36: 8 | AC36: 5 | AD36: 4 | AE36: Teilmonatsentgelt: | AF36: monatl. Arbeitseinkommen kleiner Untergrenze und mit teilmonatl. Arbeitsentgelt | AP36: nKV_Zu_Satz | AQ36: =Dialog!$I$26 | AR36: Dialog | AS36: I | AT36: 20
B37: 35 | C37: 0.025 | AA37: 807 | AB37: 8 | AC37: 7 | AD37: 4 | AE37: Teil-Übergangsbereichsentgelt: | AF37: monatl. Arbeitseinkommen kleiner Untergrenze und mit teilmonatl. Arbeitsentgelt | AP37: nRV_ges | AQ37: =Dialog!$C$20 | AR37: Dialog | AS37: C | AT37: 22
AA38: 809 | AB38: 8 | AC38: 9 | AD38: 4 | AE38: Teil-BE Arbeitnehmer: | AF38: monatl. Arbeitseinkommen kleiner Untergrenze und mit teilmonatl. Arbeitsentgelt | AP38: nRV_AG | AQ38: =Dialog!$E$20 | AR38: Dialog | AS38: E | AT38: 22
AA39: 809 | AB39: 8 | AC39: 21 | AD39: 11 | AE39: fiktives monatliches Arbeitsentgelt: | AF39: monatl. Arbeitseinkommen kleiner Untergrenze und mit teilmonatl. Arbeitsentgelt | AP39: nRV_AN | AQ39: =Dialog!$G$20 | AR39: Dialog | AS39: G | AT39: 22
AA40: 811 | AB40: 8 | AC40: 22 | AD40: 11 | AE40: fiktives monatliches Übergangsbereichsentgelt: | AF40: monatl. Arbeitseinkommen kleiner Untergrenze und mit teilmonatl. Arbeitsentgelt | AP40: nRV_Satz | AQ40: =Dialog!$I$20 | AR40: Dialog | AS40: I | AT40: 22
AA41: 914 | AB41: 9 | AC41: 24 | AD41: 11 | AE41: Beitragsbemessungsgrundlage für RV: | AF41: - | AP41: nAV_ges | AQ41: =Dialog!$C$22 | AR41: Dialog | AS41: C | AT41: 24
AA42: 3214 | AB42: 32 | AC42: 14 | AE42: Beitragsbemessungsgrundlage für RV: | AF42: RV-Beitrag aus tatsächlichem Arbeitsentgelt | AP42: nAV_AG | AQ42: =Dialog!$E$22 | AR42: Dialog | AS42: E | AT42: 24
AA43: 3214 | AB43: 32 | AC43: 14 | AE43: Beitragsbemessungsgrundlage für RV: | AF43: RV-Beitrag aus tatsächlichem Arbeitsentgelt | AP43: nAV_AN | AQ43: =Dialog!$G$22 | AR43: Dialog | AS43: G | AT43: 24
AA44: 3414 | AB44: 34 | AC44: 14 | AE44: Beitragsbemessungsgrundlage für RV: | AF44: knappschaftl. RV-Beitrag aus tats. Arbeitsentgelt | AP44: nAV_Satz | AQ44: =Dialog!$I$22 | AR44: Dialog | AS44: I | AT44: 24
AA45: 3414 | AB45: 34 | AC45: 14 | AE45: Beitragsbemessungsgrundlage für RV: | AF45: knappschaftl. RV-Beitrag aus tats. Arbeitsentgelt | AP45: nPV_ges | AQ45: =Dialog!$C$24 | AR45: Dialog | AS45: C | AT45: 26
AP46: nPV_AG | AQ46: =Dialog!$E$24 | AR46: Dialog | AS46: E | AT46: 26
AP47: nPV_AN | AQ47: =Dialog!$G$24 | AR47: Dialog | AS47: G | AT47: 26
AP48: nPV_Satz | AQ48: =Dialog!$I$24 | AR48: Dialog | AS48: I | AT48: 26
AP49: nPV_Zu_ges | AQ49: =Dialog!$C$28 | AR49: Dialog | AS49: C | AT49: =VALUE(MID(AQ49,FIND("$",AQ49,FIND("!",AQ49,1)+2)+1,5)) -> 28
AP50: nPV_Zu_AG | AQ50: =Dialog!$E$28 | AR50: Dialog | AS50: E | AT50: 28
AP51: nPV_Zu_AN | AQ51: =Dialog!$G$28 | AR51: Dialog | AS51: G | AT51: 28
AP52: nPV_Zu_Satz | AQ52: =Dialog!$I$28 | AR52: Dialog | AS52: I | AT52: 28
AP53: nU1_ges | AQ53: =Dialog!$C$32 | AR53: Dialog | AS53: C | AT53: 32
AP54: nU1_AG | AQ54: =Dialog!$E$32 | AR54: Dialog | AS54: E | AT54: 32
AP55: nU1_Satz | AQ55: =Dialog!$I$32 | AR55: Dialog | AS55: I | AT55: 32
AP56: nU2_ges | AQ56: =Dialog!$C$33 | AR56: Dialog | AS56: C | AT56: 33
AP57: nU2_AG | AQ57: =Dialog!$E$33 | AR57: Dialog | AS57: E | AT57: 33
AP58: nU2_Satz | AQ58: =Dialog!$I$33 | AR58: Dialog | AS58: I | AT58: 33
AP59: nU3_ges | AQ59: =Dialog!$C$34 | AR59: Dialog | AS59: C | AT59: 34
AP60: nU3_AG | AQ60: =Dialog!$E$34 | AR60: Dialog | AS60: E | AT60: 34
AP61: nU3_Satz | AQ61: =Dialog!$I$34 | AR61: Dialog | AS61: I | AT61: 34
AP62: Druckbereich | AQ62: =Listen!$A$1:$A$83 | AR62: Listen | AS62: A
AP63: Liste_Bezeichnung | AQ63: =Listen!$AA$1:$AJ$44 | AR63: Listen | AS63: AA
AP64: KV | AQ64: =Listen!$B$3:$C$83 | AR64: Listen | AS64: B
AP65: drop_KV | AQ65: =Listen!$C$3:$C$44 | AR65: Listen | AS65: C
AP66: Jahr | AQ66: =Listen!$F$3:$U$6 | AR66: =MID(AQ66,2,FIND("!",AQ66,1)-2) -> Listen | AS66: =MID(AQ66,FIND("!",AQ66,1)+2,FIND("$",AQ66,FIND("!",AQ66,1)+2)-FIND("!",AQ66,1)-2) -> F
AP67: drop_Jahr | AQ67: =Listen!$G$3:$G$3 | AR67: Listen | AS67: G
AP68: Gew_Jahr | AQ68: =Steuerung!$C$2 | AR68: Steuerung | AS68: C | AT68: 2
AP69: LC_Liste_Jahr | AQ69: =Steuerung!$B$3 | AR69: Steuerung | AS69: B | AT69: 3
AP70: Zeitraum | AQ70: =Steuerung!$C$3 | AR70: Steuerung | AS70: C | AT70: 3
AP71: UGrenz | AQ71: =Steuerung!$C$4 | AR71: Steuerung | AS71: C | AT71: 4
AP72: OGrenz | AQ72: =Steuerung!$C$5 | AR72: Steuerung | AS72: C | AT72: 5
AP73: Faktor | AQ73: =Steuerung!$C$6 | AR73: Steuerung | AS73: C | AT73: 6
AP74: nRV_Satz_Jahr | AQ74: =Steuerung!$C$9 | AR74: Steuerung | AS74: C | AT74: 9
AP75: nAV_Satz_Jahr | AQ75: =Steuerung!$C$10 | AR75: Steuerung | AS75: C | AT75: 10
AP76: nPV_Satz_Jahr | AQ76: =Steuerung!$C$11 | AR76: Steuerung | AS76: C | AT76: 11
AP77: S_KV_allg_erm.BS | AQ77: =Steuerung!$B$15 | AR77: Steuerung | AS77: B | AT77: 15
AP78: BS_KV_allg | AQ78: =Steuerung!$C$15 | AR78: Steuerung | AS78: C | AT78: 15
AP79: S_BS_allg | AQ79: =Steuerung!$G$15 | AR79: Steuerung | AS79: G | AT79: 15
AP80: LC_Liste_KV_Zu | AQ80: =Steuerung!$B$16 | AR80: Steuerung | AS80: B | AT80: 16
AP81: BS_KV_Zu | AQ81: =Steuerung!$C$16 | AR81: Steuerung | AS81: C | AT81: =VALUE(MID(AQ81,FIND("$",AQ81,FIND("!",AQ81,1)+2)+1,5)) -> 16
AP82: S_BS_ermäßigt | AQ82: =Steuerung!$G$16 | AR82: Steuerung | AS82: G | AT82: 16
AP83: nRV_Knapp_Jahr | AQ83: =Steuerung!$C$17 | AR83: Steuerung | AS83: C | AT83: 17
AP84: nPV_Sachsen_AG_Jahr | AQ84: =Steuerung!$C$18 | AR84: Steuerung | AS84: C | AT84: 18
AP85: nPV_Sachsen_AN_Jahr | AQ85: =Steuerung!$C$19 | AR85: =MID(AQ85,2,FIND("!",AQ85,1)-2) -> Steuerung | AS85: =MID(AQ85,FIND("!",AQ85,1)+2,FIND("$",AQ85,FIND("!",AQ85,1)+2)-FIND("!",AQ85,1)-2) -> C | AT85: =VALUE(MID(AQ85,FIND("$",AQ85,FIND("!",AQ85,1)+2)+1,5)) -> 19
AP86: S_PV_Zu | AQ86: =Steuerung!$B$20 | AR86: Steuerung | AS86: B | AT86: 20
AP87: BS_PV_Zu | AQ87: =Steuerung!$C$20 | AR87: Steuerung | AS87: C | AT87: 20
AP88: S_U1 | AQ88: =Steuerung!$B$21 | AR88: Steuerung | AS88: B | AT88: 21
AP89: S_U1_Satz | AQ89: =Steuerung!$C$21 | AR89: Steuerung | AS89: C | AT89: 21
AP90: S_U2 | AQ90: =Steuerung!$B$22 | AR90: Steuerung | AS90: B | AT90: 22
AP91: S_U2_Satz | AQ91: =Steuerung!$C$22 | AR91: Steuerung | AS91: C | AT91: 22
C92: =#REF! ->  | AP92: S_U3 | AQ92: =Steuerung!$B$23 | AR92: Steuerung | AS92: B | AT92: 23
AP93: S_U3_Satz | AQ93: =Steuerung!$C$23 | AR93: Steuerung | AS93: C | AT93: 23
AP94: S_KV_PV_frei | AQ94: =Steuerung!$B$25 | AR94: Steuerung | AS94: B | AT94: 25
AP95: S_PV_Sachsen | AQ95: =Steuerung!$B$26 | AR95: Steuerung | AS95: B | AT95: 26
AP96: S_RV_frei | AQ96: =Steuerung!$B$27 | AR96: Steuerung | AS96: B | AT96: 27
AP97: S_RV_aus_t.E. | AQ97: =Steuerung!$B$28 | AR97: Steuerung | AS97: B | AT97: 28
AP98: S_RV_Knapp | AQ98: =Steuerung!$B$29 | AR98: Steuerung | AS98: B | AT98: 29
AP99: S_AV_nur | AQ99: =Steuerung!$B$30 | AR99: =MID(AQ99,2,FIND("!",AQ99,1)-2) -> Steuerung | AS99: =MID(AQ99,FIND("!",AQ99,1)+2,FIND("$",AQ99,FIND("!",AQ99,1)+2)-FIND("!",AQ99,1)-2) -> B | AT99: 30
AP100: S_AV_frei | AQ100: =Steuerung!$B$31 | AR100: Steuerung | AS100: B | AT100: 31
AP101: S_SGB_III | AQ101: =Steuerung!$B$32 | AR101: =MID(AQ101,2,FIND("!",AQ101,1)-2) -> Steuerung | AS101: =MID(AQ101,FIND("!",AQ101,1)+2,FIND("$",AQ101,FIND("!",AQ101,1)+2)-FIND("!",AQ101,1)-2) -> B | AT101: =VALUE(MID(AQ101,FIND("$",AQ101,FIND("!",AQ101,1)+2)+1,5)) -> 32
AP102: S_Sonder_1 | AQ102: =Steuerung!$B$33 | AR102: Steuerung | AS102: B | AT102: 33
AP103: S_Sonder_2 | AQ103: =Steuerung!$B$34 | AR103: Steuerung | AS103: B | AT103: 34
AP104: S_Sonder_2_Opt | AQ104: =Steuerung!$B$35 | AR104: Steuerung | AS104: B | AT104: 35
AP105: S_Sonder_2_Opt1 | AQ105: =Steuerung!$G$35 | AR105: Steuerung | AS105: G | AT105: 35
AP106: S_Mehrfach | AQ106: =Steuerung!$B$36 | AR106: Steuerung | AS106: B | AT106: 36
AP107: S_Sonder_2_Opt2 | AQ107: =Steuerung!$G$36 | AR107: Steuerung | AS107: G | AT107: 36
AP108: S_Sonder_4 | AQ108: =Steuerung!$B$37 | AR108: Steuerung | AS108: B | AT108: 37
AP109: S_Sonder_5 | AQ109: =Steuerung!$B$38 | AR109: Steuerung | AS109: B | AT109: 38
AP110: nAuswahl_Sonder | AQ110: =Steuerung!$C$40 | AR110: Steuerung | AS110: C | AT110: 40
AP111: S_Sonder_3_Quot | AQ111: =Steuerung!$B$55 | AR111: Steuerung | AS111: B | AT111: 55
AP112: S_Sonder_aktuell | AQ112: =Steuerung!$C$69 | AR112: Steuerung | AS112: C | AT112: 69
